fUSD/lending_fUSD_20250811
["ID","MTS","AMOUNT","RATE_DAILY","PERIOD"]
[378668347,1754951456274,-400.0,0.00016986,2]
[378668348,1754951456283,-464.8,0.00016986,2]
[378668349,1754951456292,-400.0,0.00016986,2]
[378668350,1754951456301,-4595.69,0.00016986,2]
[378668351,1754951456310,-400.0,0.00016986,2]
[378668352,1754951456319,-400.0,0.00016986,2]
[378668353,1754951456329,-541.24,0.00016986,2]
[378668354,1754951456338,-400.0,0.00016986,2]
[378668355,1754951456347,-913.93,0.00016986,2]
[378668356,1754951456356,-400.0,0.00016986,2]
[378668357,1754951456364,-400.0,0.00016986,2]
[378668358,1754951456374,-400.0,0.00016986,2]
[378668359,1754951456383,-524.02,0.00016986,2]
[378668360,1754951456392,-400.0,0.00016986,2]
[378668361,1754951456401,-588.49,0.00016986,2]
[378668362,1754951456410,-578.83,0.00016986,2]
[378668363,1754951456419,-400.0,0.00016986,2]
[378668364,1754951456428,-400.0,0.00016986,2]
[378668365,1754951456437,-1247.14,0.00016986,2]
[378668366,1754951456446,-151.0,0.00016986,2]
[378668367,1754951456455,-458.07,0.00016986,2]
[378668368,1754951456464,-151.0,0.00016986,2]
[378668369,1754951456473,-400.0,0.00016986,2]
[378668370,1754951456482,-495.55,0.00016986,2]
[378668371,1754951456493,-855.41,0.00016986,2]
[378668372,1754951456503,-610.42,0.00016986,2]
[378668373,1754951456514,-814.93,0.00016986,2]
[378668374,1754951456525,-541.21,0.00016986,2]
[378668375,1754951456535,-1370.25,0.00016986,2]
[378668376,1754951456545,-560.14,0.00016986,2]
[378668377,1754951456555,-515.15,0.00016986,2]
[378668378,1754951456564,-400.0,0.00016986,2]
[378668379,1754951456574,-400.0,0.00016986,2]
[378668380,1754951456583,-433.710638,0.00016986,2]
[378668381,1754951456593,-400.0,0.00016986,2]
[378668382,1754951456603,-559.22,0.00016986,2]
[378668383,1754951456613,-433.710638,0.00016986,2]
[378668384,1754951456622,-559.19,0.00016986,2]
[378668385,1754951456631,-1362.45,0.00016986,2]
[378668386,1754951456644,-417.73,0.00016986,2]
[378668387,1754951456653,-151.0,0.00016986,2]
[378668388,1754951456665,-546.93,0.00016986,2]
[378668389,1754951456674,-460.65,0.00016986,2]
[378668390,1754951456683,-1407.23,0.00016986,2]
[378668391,1754951456692,-400.0,0.00016986,2]
[378668392,1754951456702,-409.15,0.00016986,2]
[378668393,1754951456711,-635.76,0.00016986,2]
[378668394,1754951456721,-635.76,0.00016986,2]
[378668395,1754951456730,-405.83,0.00016986,2]
[378668396,1754951456740,-1010.98,0.00016986,2]
[378668397,1754951456749,-537.37,0.00016986,2]
[378668398,1754951456758,-456.23,0.00016986,2]
[378668399,1754951456767,-400.0,0.00016986,2]
[378668400,1754951456776,-511.17,0.00016986,2]
[378668401,1754951456785,-582.61,0.00016986,2]
[378668402,1754951456794,-400.0,0.00016986,2]
[378668403,1754951456803,-469.95,0.00016986,2]
[378668404,1754951456812,-151.0,0.00016986,2]
[378668405,1754951456822,-400.0,0.00016986,2]
[378668406,1754951456831,-610.59,0.00016986,2]
[378668407,1754951456842,-432.38,0.00016986,2]
[378668408,1754951456851,-400.0,0.00016986,2]
[378668409,1754951456860,-400.0,0.00016986,2]
[378668410,1754951456869,-400.0,0.00016986,2]
[378668411,1754951456878,-1118.17,0.00016986,2]
[378668412,1754951456888,-400.0,0.00016986,2]
[378668413,1754951456897,-2669.23,0.00016986,2]
[378668414,1754951456907,-2669.23,0.00016986,2]
[378668415,1754951456916,-796.63,0.00016986,2]
[378668416,1754951456925,-400.0,0.00016986,2]
[378668417,1754951456934,-400.0,0.00016986,2]
[378668418,1754951456945,-151.0,0.00016986,2]
[378668419,1754951456954,-400.0,0.00016986,2]
[378668420,1754951456963,-520.35,0.00016986,2]
[378668421,1754951456972,-922.6,0.00016986,2]
[378668422,1754951456981,-611.63,0.00016986,2]
[378668423,1754951456991,-400.0,0.00016986,2]
[378668424,1754951457000,-1880.66,0.00016986,2]
[378668425,1754951457009,-400.0,0.00016986,2]
[378668426,1754951457019,-400.0,0.00016986,2]
[378668427,1754951457028,-400.0,0.00016986,2]
[378668428,1754951457037,-683.59,0.00016986,2]
[378668429,1754951457046,-400.0,0.00016986,2]
[378668430,1754951457057,-400.0,0.00016986,2]
[378668431,1754951457066,-738.52,0.00016986,2]
[378668432,1754951457075,-151.0,0.00016986,2]
[378668433,1754951457084,-400.0,0.00016986,2]
[378668434,1754951457093,-1165.58,0.00016986,2]
[378668435,1754951457102,-400.0,0.00016986,2]
[378668436,1754951457111,-400.0,0.00016986,2]
[378668437,1754951457121,-935.61,0.00016986,2]
[378668438,1754951457130,-151.0,0.00016986,2]
[378668439,1754951457139,-416.4,0.00016986,2]
[378668440,1754951457148,-400.0,0.00016986,2]
[378668441,1754951457157,-1130.31,0.00016986,2]
[378668442,1754951457166,-151.0,0.00016986,2]
[378668443,1754951457175,-653.789776,0.00016986,2]
[378668444,1754951457183,-400.0,0.00016986,2]
[378668445,1754951457193,-1547.84,0.00016986,2]
[378668446,1754951457201,-413.99845002,0.00016986,2]
[378668447,1754951457575,-54.07154998,0.00016986,2]
[378668448,1754951457585,-1149.74,0.00016986,2]
[378668449,1754951457594,-400.0,0.00016986,2]
[378668450,1754951457603,-252.88576401,0.00016986,2]
[378668451,1754951457687,-150.0,0.000166,2]
[378668452,1754951457696,-411.29423599,0.00016986,2]
[378668453,1754951457706,-400.0,0.00016986,2]
[378668454,1754951457715,-174.45389829,0.00016986,2]
[378668455,1754951457726,-254.21610171,0.00016986,2]
[378668456,1754951457735,-617.78389429,0.00016986,2]
[378668457,1754951457748,-139.15610571,0.00016986,2]
[378668458,1754951457757,-257.86013453,0.00016986,2]
[378668459,1754951457769,-332.15986547,0.00016986,2]
[378668460,1754951457778,-151.0,0.00016986,2]
[378668461,1754951457787,-379.24349,0.00016986,2]
[378668462,1754951457796,-145.95664453,0.00016986,2]
[378668463,1754951458209,-1117.14847152,0.00016159,2]
[378668464,1754951458219,-538.3,0.000166,2]
[378668465,1754951458228,-467.96,0.000166,2]
[378668466,1754951458237,-254.04335547,0.00016986,2]
[378668467,1754951458246,-400.0,0.00016986,2]
[378668468,1754951458255,-624.31,0.00016986,2]
[378668469,1754951458264,-695.22,0.00016986,2]
[378668470,1754951458273,-402.42,0.00016986,2]
[378668471,1754951458282,-620.119934,0.00016986,2]
[378668472,1754951458291,-667.6329618,0.00016986,2]
[378668473,1754951458302,-446.9770382,0.00016986,2]
[378668474,1754951458311,-661.46,0.00016986,2]
[378668475,1754951458320,-400.0,0.00016986,2]
[378668476,1754951458432,-111.16296388,0.00016986,2]
[378668477,1754951458453,-288.83703612,0.00016986,2]
[378668478,1754951458462,-400.0,0.00016986,2]
[378668479,1754951458472,-400.0,0.00016986,2]
[378668480,1754951458481,-457.67,0.00016986,2]
[378668481,1754951458490,-400.0,0.00016986,2]
[378668482,1754951458500,-1138.65,0.00016986,2]
[378668483,1754951458510,-1324.57,0.00016986,2]
[378668484,1754951458519,-1088.53,0.00016986,2]
[378668485,1754951458528,-514.19,0.00016986,2]
[378668486,1754951458538,-400.0,0.00016986,2]
[378668487,1754951458547,-400.0,0.00016986,2]
[378668488,1754951458556,-497.9,0.00016986,2]
[378668489,1754951458564,-151.0,0.00016986,2]
[378668490,1754951458574,-400.0,0.00016986,2]
[378668491,1754951458583,-400.0,0.00016986,2]
[378668492,1754951458598,-535.29,0.00016986,2]
[378668493,1754951458616,-664.65,0.00016986,2]
[378668494,1754951458626,-400.0,0.00016986,2]
[378668495,1754951458635,-555.39,0.00016986,2]
[378668496,1754951458644,-73.66870638,0.00016986,2]
[378668497,1754951458656,-413.64129362,0.00016986,2]
[378668498,1754951458666,-131.08870638,0.00016986,2]
[378668499,1754951458678,-427.44129362,0.00016986,2]
[378668500,1754951458688,-656.95870638,0.00016986,2]
[378668501,1754951458700,-356.48784019,0.00016986,2]
[378668502,1754951458720,-24.95345343,0.00016986,2]
[378668503,1754951458730,-400.0,0.00016986,2]
[378668504,1754951458739,-337.02678434,0.00016986,2]
[378668505,1754951458749,-151.0,0.00016986,2]
[378668506,1754951458758,-719.54,0.00016986,2]
[378668507,1754951458767,-2.14976523,0.00016986,2]
[378668508,1754951458779,-603.22023477,0.00016986,2]
[378668509,1754951458788,-532.27976523,0.00016986,2]
[378668510,1754951458814,-86.29023477,0.00016986,2]
[378668511,1754951458823,-2914.16,0.00016986,2]
[378668512,1754951458833,-595.98,0.00016986,2]
[378668513,1754951458842,-2174.8,0.00016986,2]
[378668514,1754951458854,-400.0,0.00016986,2]
[378668515,1754951458874,-713.2,0.00016986,2]
[378668516,1754951458885,-400.0,0.00016986,2]
[378668517,1754951458895,-400.0,0.00016986,2]
[378668518,1754951458905,-400.0,0.00016986,2]
[378668519,1754951458916,-400.0,0.00016986,2]
[378668520,1754951458926,-569.9,0.00016986,2]
[378668521,1754951458935,-411.95,0.00016986,2]
[378668522,1754951458946,-574.72,0.00016986,2]
[378668523,1754951458957,-490.928281,0.00016986,2]
[378668524,1754951458967,-400.0,0.00016986,2]
[378668525,1754951458975,-616.3,0.00016986,2]
[378668526,1754951458985,-400.0,0.00016986,2]
[378668527,1754951458994,-151.0,0.00016986,2]
[378668528,1754951459007,-284.49280254,0.00016986,2]
[378668529,1754951459017,-489.34,0.00016986,2]
[378668530,1754951459028,-151.0,0.00016986,2]
[378668531,1754951459038,-400.1,0.00016986,2]
[378668532,1754951459047,-400.0,0.00016986,2]
[378668533,1754951459058,-400.0,0.00016986,2]
[378668534,1754951459068,-754.42,0.00016986,2]
[378668535,1754951459078,-400.0,0.00016986,2]
[378668536,1754951459088,-1835.86,0.00016986,2]
[378668537,1754951459097,-400.0,0.00016986,2]
[378668538,1754951459106,-400.0,0.00016986,2]
[378668539,1754951459116,-501.66,0.00016986,2]
[378668540,1754951459125,-936.71,0.00016986,2]
[378668541,1754951459134,-549.21,0.00016986,2]
[378668542,1754951459144,-809.14,0.00016986,2]
[378668543,1754951459154,-2892.778739,0.00016986,2]
[378668544,1754951459164,-916.69,0.00016986,2]
[378668545,1754951459173,-612.18,0.00016986,2]
[378668546,1754951459182,-623.21,0.00016986,2]
[378668547,1754951459192,-578.62,0.00016986,2]
[378668548,1754951459201,-400.0,0.00016986,2]
[378668549,1754951459210,-2892.778739,0.00016986,2]
[378668550,1754951459219,-564.44,0.00016986,2]
[378668551,1754951459229,-631.48,0.00016986,2]
[378668552,1754951459238,-400.0,0.00016986,2]
[378668553,1754951459247,-400.0,0.00016986,2]
[378668554,1754951459257,-893.13,0.00016986,2]
[378668555,1754951459266,-400.0,0.00016986,2]
[378668556,1754951459275,-400.0,0.00016986,2]
[378668557,1754951459285,-689.06,0.00016986,2]
[378668558,1754951459294,-400.0,0.00016986,2]
[378668559,1754951459303,-469.28,0.00016986,2]
[378668560,1754951459313,-2023.41,0.00016986,2]
[378668561,1754951459322,-1574.61,0.00016986,2]
[378668562,1754951459331,-151.0,0.00016986,2]
[378668563,1754951459340,-505.39,0.00016986,2]
[378668564,1754951459350,-477.93,0.00016986,2]
[378668565,1754951459359,-686.88,0.00016986,2]
[378668566,1754951459368,-400.0,0.00016986,2]
[378668567,1754951459379,-1389.51,0.00016986,2]
[378668568,1754951459388,-881.22,0.00016986,2]
[378668569,1754951459397,-400.0,0.00016986,2]
[378668570,1754951459407,-407.57,0.00016986,2]
[378668571,1754951459416,-419.18,0.00016986,2]
[378668572,1754951459425,-790.05,0.00016986,2]
[378668573,1754951459435,-400.0,0.00016986,2]
[378668574,1754951459444,-656.85,0.00016986,2]
[378668575,1754951459454,-590.95,0.00016986,2]
[378668576,1754951459464,-830.78,0.00016986,2]
[378668577,1754951459474,-1369.98,0.00016986,2]
[378668578,1754951459483,-546.08,0.00016986,2]
[378668579,1754951459492,-1309.95072121,0.00016986,2]
[378668580,1754951588514,655.56,0.00015742,2]
[378668581,1754951746714,1000.0,0.00015722,2]
[378668582,1754951804017,154.87,0.0001565,2]
[378668583,1754951804218,154.87,0.00015673,2]
[378668584,1754951804578,154.87,0.00015695,2]
[378668585,1754951804794,154.87,0.00015717,2]
[378668586,1754951805096,154.87,0.0001574,2]
[378668587,1754951805284,154.87,0.00015762,2]
[378668588,1754951805652,154.87,0.00015784,2]
[378668589,1754951805747,154.87,0.00015807,2]
[378668591,1754951828138,150.0,9.7e-05,2]
[378668592,1754951828517,150.0,0.0001088,2]
[378668593,1754951828636,196.13,0.00013699,2]
[378668594,1754951901459,250.0,0.0001599,2]
[378668595,1754952015488,513.0,0.00015645,2]
[378668596,1754952224136,10000.0,0.00012,2]
[378668598,1754952259822,245.1,0.0001571,2]
[378668599,1754952308771,170.0,0.00015605,7]
[378668600,1754952386116,186.87,0.00015639,2]
[378668601,1754952471639,195.06,0.00015607,2]
[378668602,1754952476892,197.83,0.00015601,2]
[378668604,1754952618833,1000.0,0.00015516,2]
[378668643,1754952631674,-172.16,0.0001604,2]
[378668645,1754952631684,-250.0,0.000161,2]
[378668647,1754952631693,-78.84,0.00016159,2]
[378668649,1754952631707,-592.62998414,0.00016159,2]
[378668650,1754952631837,-459.12845804,0.00016159,2]
[378668651,1754952631847,-156.60472515,0.00016236,2]
[378668652,1754952631857,-1200.0,0.00016337,2]
[378668653,1754952631867,-2981.16760157,0.00016338,2]
[378668654,1754952631876,-300.0,0.00016399,2]
[378668655,1754952631886,-497.22518179,0.000164,2]
[378668656,1754952631896,-497.22518162,0.000164,2]
[378668657,1754952631906,-346.92554585,0.00016428,2]
[378668658,1754952631916,-160.0,0.00016428,2]
[378668659,1754952631927,-500.0,0.00016428,2]
[378668660,1754952631936,-500.0,0.00016428,2]
[378668661,1754952631946,-173.5991277,0.00016428,2]
[378668662,1754952631958,-617.56710473,0.00016428,2]
[378668663,1754952631967,-1687.67767065,0.00016428,2]
[378668664,1754952631977,-231.28369723,0.00016428,2]
[378668665,1754952631987,-204.0,0.00016428,2]
[378668666,1754952631997,-206.53,0.00016428,2]
[378668667,1754952632007,-300.0,0.00016437,2]
[378668668,1754952632016,-400.0,0.00016438,2]
[378668669,1754952632026,-400.0,0.00016438,2]
[378668670,1754952632035,-400.0,0.00016438,2]
[378668671,1754952632045,-400.0,0.00016438,2]
[378668672,1754952632055,-400.0,0.00016438,2]
[378668673,1754952632065,-400.0,0.00016438,2]
[378668674,1754952632075,-400.0,0.00016438,2]
[378668676,1754952632085,-400.0,0.00016438,2]
[378668678,1754952632095,-400.0,0.00016438,2]
[378668681,1754952632106,-400.0,0.00016438,2]
[378668683,1754952632116,-400.0,0.00016438,2]
[378668685,1754952632126,-400.0,0.00016438,2]
[378668687,1754952632136,-400.0,0.00016438,2]
[378668689,1754952632146,-529.7,0.00016438,2]
[378668691,1754952632155,-400.0,0.00016438,2]
[378668693,1754952632165,-400.0,0.00016438,2]
[378668724,1754952632175,-400.0,0.00016438,2]
[378668725,1754952632661,-400.0,0.00016438,2]
[378668726,1754952632672,-400.0,0.00016438,2]
[378668727,1754952632683,-660.12,0.00016438,2]
[378668728,1754952632692,-511.83253313,0.00016438,2]
[378668729,1754952632701,-781.49,0.00016438,2]
[378668730,1754952632711,-400.0,0.00016438,2]
[378668731,1754952632721,-400.0,0.00016438,2]
[378668732,1754952632730,-295.38807625,0.00016438,2]
[378668733,1754952632740,-400.0,0.00016438,2]
[378668734,1754952632750,-400.0,0.00016438,2]
[378668735,1754952632760,-506.29,0.00016438,2]
[378668736,1754952632769,-400.0,0.00016438,2]
[378668737,1754952632779,-400.0,0.00016438,2]
[378668738,1754952632788,-477.82,0.00016438,2]
[378668739,1754952632798,-400.0,0.00016438,2]
[378668740,1754952632808,-400.0,0.00016438,2]
[378668741,1754952632817,-400.0,0.00016438,2]
[378668742,1754952632827,-400.0,0.00016438,2]
[378668743,1754952632836,-172.56068441,0.00016438,2]
[378668744,1754952632845,-400.0,0.00016438,2]
[378668745,1754952632854,-1215.82,0.00016438,2]
[378668746,1754952632864,-355.9415473,0.00016438,2]
[378668747,1754952632873,-400.0,0.00016438,2]
[378668748,1754952632882,-400.0,0.00016438,2]
[378668749,1754952632892,-400.0,0.00016438,2]
[378668750,1754952632901,-511.06270308,0.00016438,2]
[378668751,1754952632911,-400.0,0.00016438,2]
[378668752,1754952632920,-400.0,0.00016438,2]
[378668753,1754952632931,-400.0,0.00016438,2]
[378668754,1754952632941,-400.0,0.00016438,2]
[378668755,1754952632950,-400.0,0.00016438,2]
[378668756,1754952632960,-400.0,0.00016438,2]
[378668757,1754952632969,-400.0,0.00016438,2]
[378668758,1754952632979,-474.82,0.00016438,2]
[378668759,1754952632988,-400.0,0.00016438,2]
[378668760,1754952632998,-400.0,0.00016438,2]
[378668761,1754952633007,-400.0,0.00016438,2]
[378668762,1754952633017,-400.0,0.00016438,2]
[378668763,1754952633027,-400.0,0.00016438,2]
[378668764,1754952633036,-400.0,0.00016438,2]
[378668765,1754952633047,-400.0,0.00016438,2]
[378668766,1754952633059,-400.0,0.00016438,2]
[378668767,1754952633070,-400.0,0.00016438,2]
[378668768,1754952633080,-400.0,0.00016438,2]
[378668769,1754952633089,-430.12,0.00016438,2]
[378668770,1754952633099,-400.0,0.00016438,2]
[378668771,1754952633109,-400.0,0.00016438,2]
[378668772,1754952633119,-228.43131462,0.00016438,2]
[378668773,1754952633129,-400.0,0.00016438,2]
[378668774,1754952633138,-415.96,0.00016438,2]
[378668775,1754952633148,-400.0,0.00016438,2]
[378668776,1754952633157,-400.0,0.00016438,2]
[378668777,1754952633166,-403.1180969,0.00016438,2]
[378668778,1754952633176,-400.0,0.00016438,2]
[378668779,1754952633186,-400.0,0.00016438,2]
[378668780,1754952633196,-484.17,0.00016438,2]
[378668781,1754952633206,-400.0,0.00016438,2]
[378668782,1754952633216,-400.0,0.00016438,2]
[378668783,1754952633225,-511.21,0.00016438,2]
[378668784,1754952633235,-400.0,0.00016438,2]
[378668785,1754952633245,-400.0,0.00016438,2]
[378668786,1754952633254,-464.9,0.00016438,2]
[378668787,1754952633264,-400.0,0.00016438,2]
[378668788,1754952633274,-400.0,0.00016438,2]
[378668789,1754952633287,-400.0,0.00016438,2]
[378668790,1754952633297,-400.0,0.00016438,2]
[378668791,1754952633306,-400.0,0.00016438,2]
[378668792,1754952633316,-463.95613292,0.00016438,2]
[378668793,1754952633327,-400.0,0.00016438,2]
[378668794,1754952633337,-400.0,0.00016438,2]
[378668795,1754952633346,-400.0,0.00016438,2]
[378668796,1754952633357,-400.0,0.00016438,2]
[378668797,1754952633367,-259.44715749,0.00016438,2]
[378668798,1754952633376,-400.0,0.00016438,2]
[378668799,1754952633387,-400.0,0.00016438,2]
[378668800,1754952633396,-400.0,0.00016438,2]
[378668801,1754952633406,-400.0,0.00016438,2]
[378668802,1754952633416,-400.0,0.00016438,2]
[378668803,1754952633425,-1096.99,0.00016438,2]
[378668804,1754952633436,-400.0,0.00016438,2]
[378668805,1754952633445,-426.93,0.00016438,2]
[378668806,1754952633455,-400.0,0.00016438,2]
[378668807,1754952633465,-400.0,0.00016438,2]
[378668808,1754952633474,-400.0,0.00016438,2]
[378668809,1754952633485,-536.92,0.00016438,2]
[378668810,1754952633495,-400.0,0.00016438,2]
[378668811,1754952633505,-400.0,0.00016438,2]
[378668812,1754952633514,-400.0,0.00016438,2]
[378668813,1754952633524,-400.0,0.00016438,2]
[378668814,1754952633534,-400.0,0.00016438,2]
[378668815,1754952633544,-727.39,0.00016438,2]
[378668816,1754952633554,-400.0,0.00016438,2]
[378668817,1754952633563,-400.0,0.00016438,2]
[378668818,1754952633573,-400.0,0.00016438,2]
[378668819,1754952633583,-400.0,0.00016438,2]
[378668820,1754952633593,-442.31140858,0.00016438,2]
[378668821,1754952633603,-400.0,0.00016438,2]
[378668822,1754952633613,-400.0,0.00016438,2]
[378668823,1754952633622,-400.0,0.00016438,2]
[378668824,1754952633632,-400.0,0.00016438,2]
[378668825,1754952633641,-400.0,0.00016438,2]
[378668826,1754952633651,-400.0,0.00016438,2]
[378668827,1754952633660,-400.0,0.00016438,2]
[378668828,1754952633670,-400.0,0.00016438,2]
[378668829,1754952633679,-400.0,0.00016438,2]
[378668830,1754952633689,-400.0,0.00016438,2]
[378668831,1754952633698,-400.0,0.00016438,2]
[378668832,1754952633708,-400.0,0.00016438,2]
[378668833,1754952633718,-400.0,0.00016438,2]
[378668834,1754952633727,-400.0,0.00016438,2]
[378668835,1754952633737,-400.0,0.00016438,2]
[378668836,1754952633747,-400.0,0.00016438,2]
[378668837,1754952633756,-425.56,0.00016438,2]
[378668838,1754952633766,-416.78,0.00016438,2]
[378668839,1754952633775,-6321.5,0.00016438,2]
[378668840,1754952633785,-400.0,0.00016438,2]
[378668841,1754952633794,-400.0,0.00016438,2]
[378668842,1754952633803,-422.73,0.00016438,2]
[378668843,1754952633813,-400.0,0.00016438,2]
[378668844,1754952633822,-669.22,0.00016438,2]
[378668845,1754952633832,-400.0,0.00016438,2]
[378668846,1754952633841,-400.0,0.00016438,2]
[378668847,1754952633851,-400.0,0.00016438,2]
[378668848,1754952633860,-400.0,0.00016438,2]
[378668849,1754952633870,-437.56,0.00016438,2]
[378668850,1754952633879,-400.0,0.00016438,2]
[378668851,1754952633889,-400.0,0.00016438,2]
[378668852,1754952633898,-400.0,0.00016438,2]
[378668853,1754952633908,-473.59,0.00016438,2]
[378668854,1754952633917,-400.0,0.00016438,2]
[378668855,1754952633927,-400.0,0.00016438,2]
[378668856,1754952633936,-576.91,0.00016438,2]
[378668857,1754952633945,-400.0,0.00016438,2]
[378668858,1754952633955,-400.0,0.00016438,2]
[378668859,1754952633964,-400.0,0.00016438,2]
[378668860,1754952633974,-1091.25,0.00016438,2]
[378668861,1754952633983,-492.55,0.00016438,2]
[378668862,1754952633992,-443.23,0.00016438,2]
[378668863,1754952634002,-400.0,0.00016438,2]
[378668864,1754952634011,-761.46,0.00016438,2]
[378668865,1754952634021,-400.0,0.00016438,2]
[378668866,1754952634030,-400.82,0.00016438,2]
[378668867,1754952634040,-400.0,0.00016438,2]
[378668868,1754952634049,-400.0,0.00016438,2]
[378668869,1754952634059,-400.0,0.00016438,2]
[378668870,1754952634071,-400.0,0.00016438,2]
[378668871,1754952634080,-473.55,0.00016438,2]
[378668872,1754952634090,-1560.55,0.00016438,2]
[378668873,1754952634099,-400.0,0.00016438,2]
[378668874,1754952634109,-400.0,0.00016438,2]
[378668875,1754952634118,-1231.33,0.00016438,2]
[378668876,1754952634128,-400.0,0.00016438,2]
[378668877,1754952634138,-400.0,0.00016438,2]
[378668878,1754952634148,-400.0,0.00016438,2]
[378668879,1754952634157,-434.68,0.00016438,2]
[378668880,1754952634167,-400.0,0.00016438,2]
[378668881,1754952634177,-400.0,0.00016438,2]
[378668882,1754952634186,-398.66640114,0.00016438,2]
[378668883,1754952634196,-525.47,0.00016438,2]
[378668884,1754952634206,-400.0,0.00016438,2]
[378668885,1754952634215,-1332.56,0.00016438,2]
[378668886,1754952634224,-400.0,0.00016438,2]
[378668887,1754952634234,-400.0,0.00016438,2]
[378668888,1754952634243,-400.0,0.00016438,2]
[378668889,1754952634252,-550.79,0.00016438,2]
[378668890,1754952634262,-400.0,0.00016438,2]
[378668891,1754952634272,-807.27,0.00016438,2]
[378668892,1754952634284,-400.0,0.00016438,2]
[378668893,1754952634294,-194.15925806,0.00016438,2]
[378668894,1754952634303,-530.49,0.00016438,2]
[378668895,1754952634312,-4021.23,0.00016438,2]
[378668896,1754952634322,-400.0,0.00016438,2]
[378668897,1754952634332,-400.0,0.00016438,2]
[378668898,1754952634341,-400.0,0.00016438,2]
[378668899,1754952634350,-400.0,0.00016438,2]
[378668900,1754952634360,-793.67,0.00016438,2]
[378668901,1754952634370,-489.29,0.00016438,2]
[378668902,1754952634380,-400.0,0.00016438,2]
[378668903,1754952634389,-1354.36,0.00016438,2]
[378668904,1754952634399,-578.48868275,0.00016438,2]
[378668905,1754952634995,-31.94131725,0.00016438,2]
[378668906,1754952635005,-229.46067939,0.00016438,2]
[378668907,1754952635088,-464.38932061,0.00016438,2]
[378668908,1754952635098,-400.0,0.00016438,2]
[378668909,1754952635107,-400.0,0.00016438,2]
[378668910,1754952635117,-502.49,0.00016438,2]
[378668911,1754952635126,-450.75,0.00016438,2]
[378668912,1754952635136,-617.49,0.00016438,2]
[378668913,1754952635145,-400.0,0.00016438,2]
[378668914,1754952635154,-578.78,0.00016438,2]
[378668915,1754952635164,-400.0,0.00016438,2]
[378668916,1754952635173,-1591.65,0.00016438,2]
[378668917,1754952635182,-400.0,0.00016438,2]
[378668918,1754952635192,-447.27,0.00016438,2]
[378668919,1754952635201,-400.0,0.00016438,2]
[378668920,1754952635210,-480.53,0.00016438,2]
[378668921,1754952635220,-427.87,0.00016438,2]
[378668922,1754952635229,-1561.71,0.00016438,2]
[378668923,1754952635238,-403.07,0.00016438,2]
[378668924,1754952635247,-400.0,0.00016438,2]
[378668925,1754952635256,-433.6,0.00016438,2]
[378668926,1754952635265,-400.0,0.00016438,2]
[378668927,1754952635274,-488.71,0.00016438,2]
[378668928,1754952635288,-400.0,0.00016438,2]
[378668929,1754952635297,-400.0,0.00016438,2]
[378668930,1754952635306,-514.36,0.00016438,2]